bitfinex/quotes_BTCUSD_20260311
["timestamp","ask_amount","ask_price","bid_price","bid_amount"]
[1773258483835,0.21179835,70719.0,70706.0,0.0002]
[1773258484058,0.141096,70718.0,70706.0,0.0002]
[1773258484199,0.21179835,70719.0,70706.0,0.0002]
[1773258484799,0.00144,70718.0,70706.0,0.0002]
[1773258485399,0.07070435,70717.0,70706.0,0.0002]
[1773258486618,0.07270435,70717.0,70706.0,0.0002]
[1773258486820,0.07370435,70717.0,70706.0,0.0002]
[1773258487203,0.07170435,70717.0,70706.0,0.0002]
[1773258487374,0.07370435,70717.0,70706.0,0.0002]
[1773258487976,0.07270435,70717.0,70706.0,0.0002]
[1773258488377,0.07370435,70717.0,70706.0,0.0002]
[1773258488751,0.07370438,70717.0,70706.0,0.0002]
[1773258488955,0.07270438,70717.0,70698.0,0.0002]
[1773258489252,0.07170438,70717.0,70698.0,0.07092326]
[1773258489491,0.07370438,70717.0,70698.0,0.07092326]
[1773258489803,0.07270438,70717.0,70698.0,0.07092326]
[1773258490154,0.07070438,70717.0,70698.0,0.07092326]
[1773258490591,0.07170438,70717.0,70698.0,0.07092326]
[1773258491305,0.02006712,70709.0,70694.0,0.0001921]
[1773258491464,0.00144,70708.0,70694.0,0.0001921]
[1773258492090,0.00144,70708.0,70690.0,0.07073048]
[1773258492091,0.00144,70708.0,70698.0,0.0002]
[1773258492301,0.07071435,70707.0,70698.0,0.0002]
[1773258493593,0.07271435,70707.0,70698.0,0.0002]
[1773258493799,0.07071435,70707.0,70698.0,0.0002]
[1773258494449,0.07171435,70707.0,70698.0,0.0002]
[1773258494940,0.07071435,70707.0,70698.0,0.0002]
[1773258495150,0.07271435,70707.0,70698.0,0.0002]
[1773258495321,0.07371435,70707.0,70698.0,0.0002]
[1773258495523,0.07171435,70707.0,70698.0,0.0002]
[1773258495753,0.07271435,70707.0,70698.0,0.0002]
[1773258496148,0.07371435,70707.0,70684.0,0.0002]
[1773258496327,0.07371435,70707.0,70684.0,0.07093723]
[1773258496529,0.07371435,70707.0,70684.0,0.07093661]
[1773258496943,0.07371435,70707.0,70685.0,0.07093631]
[1773258497227,0.07171435,70707.0,70685.0,0.0002]
[1773258497924,0.04203102,70700.0,70685.0,0.0002]
[1773258498123,0.00144,70699.0,70684.0,0.0002]
[1773258498574,0.07072335,70698.0,70684.0,0.0002]
[1773258499900,0.07183465,70698.0,70684.0,0.0002]
[1773258500481,0.07183465,70698.0,70685.0,0.06335951]
[1773258501025,0.07083465,70698.0,70685.0,0.06335951]
[1773258501432,0.07183465,70698.0,70685.0,0.06335951]
[1773258501579,0.00133131,70698.0,70686.0,0.06335951]
[1773258501782,0.00144,70697.0,70686.0,0.06335951]
[1773258502269,0.00033131,70698.0,70686.0,0.06362711]
[1773258502454,0.00144,70696.0,70686.0,0.06362711]
[1773258502761,0.00144,70695.0,70688.0,0.06335951]
[1773258503258,0.00144,70695.0,70688.0,0.06362711]
[1773258503561,0.00133131,70698.0,70688.0,0.06362711]
[1773258503739,0.00144,70694.0,70688.0,0.06362711]
[1773258504127,0.00144,70695.0,70688.0,0.06362711]
[1773258504366,0.00033131,70698.0,70688.0,0.06362711]
[1773258504526,0.00022001,70706.0,70689.0,0.07073236]
[1773258504728,0.00144,70705.0,70690.0,0.06335951]
[1773258505156,0.00022001,70706.0,70690.0,0.06335951]
[1773258505354,0.00144,70704.0,70690.0,0.06362711]
[1773258506997,0.00144,70704.0,70691.0,0.13408987]
[1773258507204,0.00144,70704.0,70691.0,0.13435747]
[1773258507404,0.04203102,70701.0,70689.0,0.0001113]
[1773258507711,0.07071835,70703.0,70684.0,0.07093732]
[1773258507944,0.07082863,70703.0,70684.0,0.13429683]
[1773258508242,0.07082863,70703.0,70685.0,0.06335951]
[1773258508902,0.07082863,70703.0,70684.0,0.0002]
[1773258509321,0.07182863,70703.0,70684.0,0.0002]
[1773258509723,0.04203102,70700.0,70684.0,0.0002]
[1773258510285,0.04203102,70700.0,70683.0,0.0002]
[1773258510637,0.04203102,70700.0,70683.0,0.00016]
[1773258511451,0.07072235,70699.0,70683.0,0.00016]
[1773258511658,0.00144,70698.0,70683.0,0.00016]
[1773258512933,0.00144,70698.0,70682.0,0.0001952]
[1773258513135,0.07072435,70697.0,70682.0,0.0001952]
[1773258514585,0.07272435,70697.0,70682.0,0.0001952]
[1773258514948,0.07372435,70697.0,70682.0,0.0001952]
[1773258515319,0.07272435,70697.0,70682.0,0.0001952]
[1773258515670,0.07172435,70697.0,70682.0,0.0001952]
[1773258515876,0.07172435,70697.0,70683.0,0.06335951]
[1773258516057,0.07272435,70697.0,70683.0,0.06335951]
[1773258516249,0.07172435,70697.0,70683.0,0.06335951]
[1773258516658,0.07272435,70697.0,70683.0,0.06335951]
[1773258516874,0.07072435,70697.0,70683.0,0.06335951]
[1773258517264,0.07172435,70697.0,70683.0,0.06335951]
[1773258517660,0.07072435,70697.0,70683.0,0.06335951]
[1773258518482,0.001,70697.0,70683.0,0.07073783]
[1773258518710,0.00144,70696.0,70684.0,0.06335951]
[1773258520137,0.00144,70696.0,70685.0,0.06335951]
[1773258520715,0.00244,70696.0,70685.0,0.06335951]
[1773258521213,0.00344,70696.0,70685.0,0.06335951]
[1773258521413,0.00344,70696.0,70684.0,0.07073713]
[1773258521414,0.00344,70696.0,70682.0,0.07113256]
[1773258521584,0.00244,70696.0,70684.0,0.06335951]
[1773258521787,0.00144,70696.0,70684.0,0.06335951]
[1773258522208,0.00244,70696.0,70684.0,0.06335951]
[1773258522443,0.00144,70696.0,70684.0,0.06335951]
[1773258524220,0.00144,70696.0,70686.0,0.06335951]
[1773258526218,0.00244,70696.0,70686.0,0.06335951]
[1773258526572,0.00144,70696.0,70686.0,0.06335951]
[1773258526778,0.00244,70696.0,70686.0,0.06335951]
[1773258527133,0.00144,70696.0,70686.0,0.06335951]
[1773258527488,0.00244,70696.0,70686.0,0.06335951]
[1773258528160,0.0731656,70696.0,70682.0,0.0003952]
[1773258528684,0.0721656,70696.0,70682.0,0.0003952]
[1773258529175,0.0721656,70696.0,70682.0,0.00024502]
[1773258529386,0.04204979,70692.0,70678.0,0.0002]
[1773258529595,0.04204979,70687.0,70674.0,1e-08]
[1773258529767,0.04204979,70684.0,70672.0,1e-08]
[1773258530086,0.00144,70683.0,70672.0,1e-08]
[1773258530238,0.07074036,70681.0,70672.0,1e-08]
[1773258530435,0.00144,70680.0,70672.0,1e-08]
[1773258531377,0.00144,70680.0,70672.0,0.00037159]
[1773258531608,0.00144,70680.0,70667.0,0.0002]
[1773258531741,0.00181135,70680.0,70667.0,0.0002]
[1773258532371,0.07074237,70679.0,70667.0,0.0002]
[1773258533934,0.07174237,70679.0,70667.0,0.0002]
[1773258534690,0.07274237,70679.0,70667.0,0.0002]
[1773258535247,0.07174237,70679.0,70667.0,0.0002]
[1773258535950,0.07274237,70679.0,70667.0,0.0002]
[1773258536760,0.07174237,70679.0,70667.0,0.0002]
[1773258537183,0.07274237,70679.0,70667.0,0.0002]
[1773258537595,0.001,70679.0,70668.0,0.06335951]
[1773258537804,0.00144,70678.0,70668.0,0.06335951]
[1773258537983,0.00144,70677.0,70668.0,0.06335951]
[1773258538582,0.00144,70676.0,70668.0,0.06335951]
[1773258538784,0.00144,70676.0,70668.0,0.06373086]
[1773258538962,0.001,70679.0,70668.0,0.06373086]
[1773258539142,0.00144,70675.0,70668.0,0.06373086]
[1773258539556,0.00144,70675.0,70669.0,0.059599]
[1773258539953,0.07073991,70682.0,70669.0,0.059599]
[1773258540176,0.00144,70681.0,70669.0,0.059599]
[1773258540561,0.00144,70680.0,70669.0,0.059599]
[1773258540764,0.00144,70680.0,70668.0,0.00037135]
[1773258541083,0.00144,70679.0,70668.0,0.00037135]
[1773258541460,0.00144,70679.0,70668.0,0.07112438]
[1773258541660,0.00144,70679.0,70668.0,0.00037135]
[1773258543116,0.00144,70679.0,70668.0,0.0711247]
[1773258543470,0.00144,70679.0,70669.0,0.0002]
[1773258543935,0.00144,70679.0,70669.0,4.981e-05]
[1773258545823,0.00749816,70678.0,70669.0,4.981e-05]
[1773258546062,0.00144,70677.0,70669.0,4.981e-05]
[1773258547184,0.00893816,70677.0,70669.0,4.981e-05]
[1773258548888,0.00244,70677.0,70669.0,4.981e-05]
[1773258549091,0.00893816,70677.0,70669.0,4.981e-05]
[1773258550392,0.00144,70677.0,70669.0,4.981e-05]
[1773258551978,0.00749816,70682.0,70669.0,4.981e-05]
[1773258552179,0.00144,70681.0,70669.0,4.981e-05]
[1773258552567,0.00144,70680.0,70669.0,4.981e-05]
[1773258553137,0.00144,70679.0,70669.0,4.981e-05]
[1773258554281,0.00749816,70678.0,70669.0,4.981e-05]
[1773258556586,0.07074369,70678.0,70669.0,4.981e-05]
[1773258556757,0.07074369,70678.0,70658.0,0.0707632]
[1773258556758,0.00749816,70677.0,70658.0,0.0707632]
[1773258556918,0.00749816,70677.0,70661.0,0.00031144]
[1773258557716,0.00749816,70675.0,70661.0,0.00031144]
[1773258558330,0.00749816,70675.0,70669.0,0.0002]
[1773258559226,0.00849816,70675.0,70669.0,0.0002]
[1773258559977,0.00749816,70674.0,70669.0,0.0002]
[1773258560262,0.00749816,70672.0,70669.0,0.0002]
[1773258561628,0.00144,70673.0,70669.0,0.0002]
[1773258562043,0.001,70672.0,70669.0,0.0002]
[1773258562269,0.00144,70673.0,70669.0,0.0002]
[1773258562714,0.001,70672.0,70669.0,0.0002]
[1773258562916,0.002,70672.0,70669.0,0.0002]
[1773258563294,0.001,70672.0,70669.0,0.0002]
[1773258564149,0.00849816,70672.0,70669.0,0.0002]
[1773258564352,0.00144,70671.0,70669.0,0.0002]
[1773258566338,0.00144,70670.0,70669.0,0.0002]
[1773258566562,0.00144,70674.0,70669.0,0.0002]
[1773258568832,0.001,70671.0,70669.0,0.0002]
[1773258569026,0.00144,70674.0,70669.0,0.0002]
[1773258569227,0.00144,70674.0,70661.0,0.00031144]
[1773258569228,0.00749816,70673.0,70661.0,0.00031144]
[1773258570004,0.001,70671.0,70661.0,0.00031144]
[1773258570421,0.001,70671.0,70661.0,0.07107175]
[1773258571242,0.00749816,70672.0,70661.0,0.07107163]
[1773258571678,0.001,70671.0,70661.0,0.07107163]
[1773258572761,0.00144,70674.0,70661.0,0.07107163]
[1773258573361,0.00127822,70674.0,70661.0,0.07107163]
[1773258577027,0.00109792,70674.0,70661.0,0.07107163]
[1773258577589,0.005,70673.0,70661.0,0.07107163]
[1773258579851,0.00018032,70672.0,70661.0,0.07107163]
[1773258581066,0.00022001,70690.0,70675.0,0.04205906]
[1773258581221,0.00144,70689.0,70678.0,0.00445898]
[1773258581964,0.00022001,70683.0,70678.0,0.00445898]
[1773258582384,0.00022001,70690.0,70678.0,0.00445898]
[1773258583230,0.00022001,70690.0,70679.0,0.07074237]
[1773258584878,0.00521817,70690.0,70679.0,0.07074237]
[1773258585307,0.00521817,70690.0,70673.0,0.07074837]
[1773258585511,0.00022001,70690.0,70673.0,0.07074837]
[1773258586201,0.00499816,70689.0,70673.0,0.07074837]
[1773258587053,0.00022001,70690.0,70673.0,0.07074837]
[1773258587678,0.00022001,70690.0,70673.0,0.07174837]
[1773258587880,0.00022001,70690.0,70673.0,0.07074837]
[1773258588829,0.00166001,70694.0,70680.0,0.04205906]
[1773258589037,0.00166001,70694.0,70673.0,0.07074837]
[1773258589038,0.00499816,70691.0,70673.0,0.07074837]
[1773258594273,0.00537116,70691.0,70673.0,0.07074837]
[1773258595180,0.00559117,70691.0,70673.0,0.07074837]
[1773258595872,0.00059301,70691.0,70673.0,0.07074837]
[1773258596081,0.00059301,70691.0,70673.0,0.07174837]
[1773258596508,0.00059301,70691.0,70673.0,0.07074837]
[1773258597323,0.00059301,70691.0,70673.0,0.07174837]
[1773258598457,0.00499816,70690.0,70673.0,0.07174837]
[1773258598645,0.00499816,70690.0,70673.0,0.07074837]
[1773258599210,0.00537116,70690.0,70673.0,0.07074837]
[1773258599413,0.00537116,70690.0,70673.0,0.07174837]
[1773258599836,0.00537116,70690.0,70673.0,0.07074837]
[1773258600202,0.00022001,70694.0,70673.0,0.07074837]
[1773258600441,0.00499816,70702.0,70684.0,0.04205906]
[1773258600639,0.00499816,70699.0,70678.0,0.01]
[1773258600966,0.07085999,70703.0,70678.0,0.01]
[1773258600967,0.00499816,70697.0,70678.0,0.01144]
[1773258601536,0.00536951,70697.0,70678.0,0.01]
[1773258602152,0.00536951,70697.0,70680.0,0.04205906]
[1773258602388,0.00536951,70697.0,70681.0,0.07074036]
[1773258603117,0.00499816,70696.0,70681.0,0.07074036]
[1773258604047,0.00499816,70696.0,70678.0,0.08074247]
[1773258604796,0.00499816,70694.0,70678.0,0.08074247]
[1773258606948,0.07072836,70693.0,70678.0,0.01]
[1773258607245,0.00499816,70692.0,70676.0,0.07089572]
[1773258607836,0.00499816,70692.0,70676.0,0.0708957]
[1773258608956,0.00499816,70690.0,70676.0,0.0001506]
[1773258609164,0.00499816,70688.0,70676.0,0.0001506]
[1773258610209,0.00499816,70688.0,70674.0,0.07074737]
[1773258610379,0.00499816,70688.0,70665.0,0.07095637]
[1773258610702,0.00499816,70679.0,70665.0,0.07095629]
[1773258610900,0.00499816,70677.0,70665.0,0.07095629]
[1773258611076,0.00499816,70675.0,70665.0,0.07095608]
[1773258611276,0.00499816,70674.0,70665.0,0.07095608]
[1773258611477,0.00144,70675.0,70665.0,0.07095608]
[1773258612069,0.00499816,70674.0,70665.0,0.07095608]
[1773258613803,0.00499816,70674.0,70665.0,0.0002]
[1773258614124,0.00499816,70674.0,70665.0,0.07095601]
[1773258614708,0.00144,70675.0,70665.0,0.07095601]
[1773258615211,0.00144,70675.0,70665.0,0.07095596]
[1773258616302,0.00643816,70675.0,70665.0,0.07095596]
[1773258616898,0.00643816,70675.0,70665.0,0.0002]
[1773258617120,0.00499816,70674.0,70665.0,0.07095621]
[1773258618042,0.00144,70675.0,70665.0,0.07095621]
[1773258618247,0.00506329,70689.0,70670.0,0.04205906]
[1773258618447,0.00506329,70689.0,70672.0,0.00454011]
[1773258618448,0.0015906,70689.0,70672.0,0.00454011]
[1773258618646,0.0001506,70689.0,70672.0,0.00454011]
[1773258618871,0.0001506,70689.0,70671.0,0.00144]
[1773258618872,0.00144,70694.0,70680.0,0.00454011]
[1773258619036,0.0001506,70697.0,70684.0,0.04205906]
[1773258619271,0.00022001,70703.0,70687.0,0.00454011]
[1773258619272,0.00166001,70703.0,70687.0,0.00454011]
[1773258619506,0.00166001,70703.0,70687.0,0.00465039]
[1773258619713,0.00022001,70703.0,70687.0,0.00465039]
[1773258620197,0.00022001,70703.0,70689.0,0.00473667]
[1773258620198,0.00166001,70703.0,70689.0,0.00473667]
[1773258620770,0.00022001,70703.0,70689.0,0.00473667]
[1773258620968,0.00022001,70703.0,70690.0,0.04205906]
[1773258621172,0.00022001,70703.0,70691.0,0.00473667]
[1773258621571,0.00022001,70703.0,70692.0,0.07072936]
[1773258621775,0.00022001,70703.0,70691.0,0.0754668]
[1773258621978,0.07071935,70702.0,70686.0,0.07073519]
[1773258622201,0.07071935,70702.0,70682.0,0.07087956]
[1773258622202,0.00487583,70701.0,70682.0,0.07087956]
[1773258622397,0.00498613,70701.0,70682.0,0.07087956]
[1773258623687,0.00498613,70701.0,70678.0,0.00144]
[1773258623688,0.00498613,70701.0,70658.0,0.0002]
[1773258624032,0.00487583,70691.0,70671.0,0.07094737]
[1773258624192,0.00487583,70691.0,70672.0,0.00473667]
[1773258624856,0.00144,70692.0,70680.0,0.04205906]
[1773258625003,0.00631583,70697.0,70681.0,0.00473667]
[1773258625209,0.0001103,70701.0,70681.0,0.00473667]
[1773258625464,0.0001103,70701.0,70683.0,0.00473667]
[1773258625821,0.00498613,70701.0,70684.0,0.07547403]
[1773258626622,0.00498613,70701.0,70685.0,0.0014]
[1773258627029,0.00520614,70701.0,70685.0,0.0014]
[1773258628051,0.00520614,70701.0,70686.0,0.07073536]
[1773258628253,0.00487583,70700.0,70686.0,0.07073536]
[1773258629028,0.00033031,70701.0,70687.0,0.00473667]
[1773258629239,0.00520614,70701.0,70687.0,0.00473667]
[1773258629652,0.07105085,70701.0,70686.0,0.07073536]
[1773258629872,0.00487583,70700.0,70686.0,0.07073536]
[1773258630409,0.00487583,70700.0,70685.0,0.07213602]
[1773258633102,0.00487583,70699.0,70685.0,0.0014]
[1773258633677,0.00487583,70699.0,70685.0,0.07213598]
[1773258634274,0.00487583,70699.0,70681.0,0.0707401]
[1773258634538,0.00487583,70699.0,70682.0,0.0014]
[1773258634899,0.00487583,70699.0,70683.0,0.0014]
[1773258635904,0.00487583,70699.0,70684.0,0.0014]
[1773258636110,0.00487583,70699.0,70685.0,0.0002]
[1773258636307,0.00509584,70699.0,70686.0,0.07073536]
[1773258636929,0.00022001,70699.0,70687.0,0.00473667]
[1773258637677,0.00022001,70699.0,70686.0,0.07073536]
[1773258637678,0.00509584,70713.0,70690.0,0.00473667]
[1773258637849,0.0001976,70720.0,70701.0,0.00473667]
[1773258637850,0.00144,70719.0,70701.0,0.00473667]
[1773258637999,0.00144,70719.0,70703.0,0.00473667]
[1773258638418,0.0001976,70720.0,70704.0,0.07545402]
[1773258638640,0.07070244,70719.0,70704.0,0.00473667]
[1773258638839,0.00487583,70716.0,70703.0,0.07071735]
[1773258639469,0.00487583,70713.0,70703.0,0.07071735]
[1773258640394,0.00488165,70717.0,70703.0,0.07071735]
[1773258640614,0.00022001,70718.0,70704.0,0.00485933]
[1773258640783,0.00022001,70718.0,70704.0,0.00585933]
[1773258641388,0.00022001,70718.0,70704.0,0.00485933]
[1773258643350,0.00022001,70718.0,70705.0,0.07071635]
[1773258643576,0.07069607,70726.0,70705.0,0.07071635]
[1773258643577,0.00646304,70727.0,70706.0,0.00485933]
[1773258643779,0.00158139,70727.0,70706.0,0.00485933]
[1773258644180,0.00014139,70727.0,70706.0,0.00485933]
[1773258645431,0.00014139,70727.0,70707.0,0.07071435]
[1773258645636,0.00014139,70727.0,70709.0,0.00485933]
[1773258646059,0.00022001,70722.0,70709.0,0.00485933]
[1773258646260,0.00014139,70727.0,70709.0,0.00485933]
[1773258646465,0.00014139,70727.0,70711.0,0.00485933]
[1773258647776,0.00014139,70727.0,70712.0,0.07070935]
[1773258647979,0.00502304,70727.0,70712.0,0.07070935]
[1773258648184,0.00502304,70727.0,70713.0,0.00144]
[1773258649097,0.00513443,70727.0,70713.0,0.00144]
[1773258650148,0.00513443,70727.0,70714.0,0.07070735]
[1773258651033,0.00499304,70727.0,70714.0,0.07070735]
[1773258651401,0.00513443,70727.0,70714.0,0.07070735]
[1773258652937,0.00535444,70727.0,70714.0,0.07070735]
[1773258654521,0.00535444,70727.0,70714.0,0.07214735]
[1773258654972,0.00535444,70727.0,70714.0,0.07070735]
[1773258656380,0.00535444,70727.0,70708.0,0.00496696]
[1773258656612,0.00535444,70727.0,70709.0,0.00144]
[1773258657093,0.00535444,70727.0,70710.0,0.00144]
[1773258657293,0.00535444,70727.0,70710.0,0.00640696]
[1773258657459,0.00521305,70727.0,70710.0,0.00640696]
[1773258658291,0.00521305,70727.0,70711.0,0.07071035]
[1773258660357,0.07068629,70736.0,70711.0,0.07071035]
[1773258660358,0.00144,70736.0,70714.0,0.00496696]
[1773258660563,0.00144,70739.0,70714.0,0.00507835]
[1773258660789,0.00482055,70738.0,70714.0,0.00507835]
[1773258661231,0.01953699,70737.0,70714.0,0.00011139]
[1773258661408,0.00482055,70736.0,70715.0,0.00144]
[1773258661898,0.00482055,70736.0,70716.0,0.00144]
[1773258662720,0.00482055,70734.0,70717.0,0.07070435]
[1773258664960,0.00482055,70733.0,70717.0,0.07070435]
[1773258665141,0.00482055,70731.0,70717.0,0.07070435]
[1773258667514,0.00482055,70731.0,70717.0,0.07090435]
[1773258669999,0.00482055,70731.0,70717.0,0.07234435]
[1773258671114,0.14111429,70735.0,70718.0,0.00496696]
[1773258671317,0.12939429,70736.0,70720.0,0.04200549]
[1773258671689,0.00022001,70742.0,70717.0,0.07090435]
[1773258671690,0.00022001,70742.0,70726.0,0.04200549]
[1773258671836,0.00022001,70742.0,70721.0,0.00144]
[1773258671837,0.00022001,70742.0,70727.0,0.00496696]
[1773258672162,0.00022001,70742.0,70729.0,0.00496696]
[1773258672370,0.00022001,70742.0,70731.0,0.00496696]
[1773258673022,0.00022001,70742.0,70730.0,0.00144]
[1773258673271,0.00482055,70739.0,70720.0,0.00496696]
[1773258673695,0.00482055,70739.0,70718.0,0.07070335]
[1773258673921,0.00482055,70739.0,70717.0,0.07090413]
[1773258674946,0.00482055,70739.0,70717.0,0.0709039]
[1773258675165,0.00482055,70737.0,70717.0,0.0709039]
[1773258676037,0.00482055,70737.0,70717.0,0.07587086]
[1773258676863,0.00482055,70737.0,70717.0,0.0709039]
[1773258677218,0.00482055,70735.0,70718.0,0.00496696]
[1773258677411,0.00482055,70735.0,70717.0,0.0709039]
[1773258678076,0.00482055,70735.0,70717.0,0.1609729]
[1773258678753,0.00482055,70735.0,70718.0,0.00496696]
[1773258678960,0.0002904,70748.0,70720.0,0.12600107]
[1773258679130,0.00144,70746.0,70723.0,0.00496696]
[1773258679328,0.00144,70746.0,70725.0,0.00496696]
[1773258679528,0.07066855,70753.0,70725.0,0.00496696]
[1773258679529,0.00144,70749.0,70725.0,0.00496696]
[1773258681067,0.00144,70749.0,70726.0,0.07069535]
[1773258681278,0.00144,70749.0,70727.0,0.00492152]
[1773258682881,0.0022643,70748.0,70727.0,0.00492152]
[1773258683082,0.07067437,70747.0,70730.0,0.07069136]
[1773258683431,0.0022643,70746.0,70730.0,0.07561288]
[1773258683632,0.0022643,70746.0,70731.0,0.00144]
[1773258684020,0.0022643,70746.0,70730.0,0.07561288]
[1773258684219,0.0022643,70746.0,70730.0,0.07705288]
[1773258685023,0.21309257,70749.0,70731.0,0.00492152]
[1773258685225,0.14097987,70748.0,70733.0,0.00492152]
[1773258685636,0.074377,70749.0,70733.0,0.00492152]
[1773258685838,0.0022643,70748.0,70733.0,0.00492152]
[1773258687166,0.07067437,70747.0,70733.0,0.07560974]
[1773258687937,0.0721127,70749.0,70733.0,0.07068822]
[1773258688145,0.21309257,70749.0,70734.0,0.00492152]
[1773258688460,0.14097987,70748.0,70734.0,0.00492152]
[1773258689019,0.074377,70749.0,70734.0,0.00492152]
[1773258689194,0.075377,70749.0,70734.0,0.00492152]
[1773258689540,0.074377,70749.0,70734.0,0.00492152]
[1773258689746,0.0721127,70749.0,70734.0,0.07560874]
[1773258690547,0.14241987,70749.0,70735.0,0.00492152]
[1773258690899,0.00144,70749.0,70735.0,0.00492152]
[1773258691068,0.07211302,70749.0,70735.0,0.00492152]
[1773258691270,0.07211302,70749.0,70735.0,0.07560767]
[1773258691471,0.00144,70749.0,70736.0,0.00492152]
[1773258692044,0.07211255,70749.0,70736.0,0.00492152]
[1773258692295,0.21309242,70749.0,70736.0,0.00492152]
[1773258692493,0.14097987,70748.0,70736.0,0.00492152]
[1773258692659,0.14241987,70749.0,70736.0,0.00492152]
[1773258692868,0.00155137,70749.0,70736.0,0.00492152]
[1773258693278,0.00155137,70749.0,70738.0,0.00492152]
[1773258694914,0.00255137,70749.0,70738.0,0.00492152]
[1773258695271,0.00155137,70749.0,70738.0,0.07068312]
[1773258695470,0.00155137,70749.0,70739.0,0.00492152]
[1773258696042,0.00144,70754.0,70739.0,0.00492152]
[1773258696244,0.01124,70757.0,70741.0,0.03319969]
[1773258696467,0.01124,70757.0,70742.0,0.00492152]
[1773258697083,0.01268,70757.0,70742.0,0.00492152]
[1773258697280,0.01268,70757.0,70743.0,0.07067837]
[1773258697464,0.01268,70757.0,70744.0,0.00492152]
[1773258698508,0.01435939,70762.0,70744.0,0.00492152]
[1773258698714,0.0002634,70763.0,70743.0,0.07211837]
[1773258698715,0.0002634,70763.0,70748.0,0.00492152]
[1773258699317,0.0002634,70763.0,70749.0,0.07067237]
[1773258699597,0.0002634,70763.0,70743.0,0.07211837]
[1773258699598,0.0022643,70759.0,70740.0,0.07068136]
[1773258699797,0.0022643,70759.0,70740.0,0.07064136]
[1773258700015,0.0022643,70759.0,70741.0,0.0045951]
[1773258701552,0.07066338,70758.0,70742.0,0.07067937]
[1773258701758,0.00144,70757.0,70743.0,0.0045951]
[1773258702113,0.0037043,70757.0,70743.0,0.0045951]
[1773258703321,0.0037043,70757.0,70742.0,0.07067937]
[1773258704194,0.0037043,70757.0,70743.0,0.0045951]
[1773258704399,0.00144,70757.0,70743.0,0.0045951]
[1773258704841,0.0002634,70763.0,70743.0,0.0045951]
[1773258706154,0.00144,70764.0,70745.0,0.0045951]
[1773258706349,0.00144,70764.0,70747.0,0.0045951]
[1773258706350,0.0001454,70763.0,70747.0,0.0045951]
[1773258706775,0.00022001,70757.0,70747.0,0.0045951]
[1773258706971,0.0001454,70763.0,70747.0,0.0045951]
[1773258708324,0.0001454,70763.0,70749.0,0.0045951]
[1773258709514,0.0001454,70763.0,70745.0,0.07067337]
[1773258709515,0.0022643,70762.0,70741.0,0.07067837]
[1773258709726,0.0022643,70762.0,70746.0,0.00144]
[1773258710069,0.0022643,70762.0,70743.0,0.00144]
[1773258710276,0.0022643,70762.0,70739.0,0.00011137]
[1773258710277,0.0022643,70759.0,70739.0,0.00011137]
[1773258710483,0.0022643,70759.0,70737.0,0.090069]
[1773258710484,0.0022643,70749.0,70737.0,0.090069]
[1773258710690,0.0022643,70747.0,70737.0,0.00342808]
[1773258710865,0.0022643,70747.0,70730.0,0.07089094]
[1773258711826,0.0022643,70747.0,70730.0,0.0002]
[1773258712696,0.07067537,70746.0,70730.0,0.0002]
[1773258712873,0.0022643,70745.0,70730.0,0.0002]
[1773258714340,0.001,70745.0,70738.0,0.0002]
[1773258715993,0.07067453,70747.0,70738.0,0.0002]
[1773258716253,0.001,70745.0,70738.0,0.0002]
[1773258716594,0.00144,70744.0,70738.0,0.0002]
[1773258716796,0.001,70745.0,70738.0,0.0002]
[1773258717182,0.00144,70745.0,70738.0,0.0002]
[1773258718066,0.00244,70745.0,70738.0,0.0002]
[1773258719429,0.00144,70745.0,70738.0,0.0002]
[1773258719858,0.00244,70745.0,70738.0,0.0002]
[1773258720259,0.0001113,70749.0,70738.0,0.0002]
[1773258720470,0.00144,70748.0,70739.0,0.00464162]
[1773258720794,0.00144,70748.0,70738.0,0.0002]
[1773258721240,0.001,70745.0,70738.0,0.0002]
[1773258722333,0.07394154,70745.0,70738.0,0.0002]
[1773258722481,0.0022643,70744.0,70730.0,0.0002]
[1773258722684,0.0022643,70744.0,70730.0,0.07089132]
[1773258723338,0.0022643,70758.0,70739.0,0.00464162]
[1773258723546,0.00144,70752.0,70739.0,0.00464162]
[1773258723917,0.00144,70751.0,70739.0,0.00464162]
[1773258724301,0.00144,70751.0,70739.0,0.07532356]
[1773258724490,0.00144,70751.0,70740.0,0.00464162]
[1773258724897,0.0743752,70751.0,70738.0,0.0002]
[1773258725320,0.0743752,70751.0,70738.0,0.00484162]
[1773258725527,0.0721109,70751.0,70738.0,0.00484162]
[1773258726533,0.0022643,70748.0,70738.0,0.0002]
[1773258726920,0.0721109,70751.0,70738.0,0.0002]
[1773258729567,0.0022643,70748.0,70738.0,0.0002]
[1773258731400,0.07067437,70747.0,70738.0,0.0002]
[1773258732389,0.0022643,70746.0,70738.0,0.0002]
[1773258732598,0.0022643,70746.0,70719.0,0.00478303]
[1773258732800,0.0022643,70746.0,70720.0,0.07093229]
[1773258733208,0.0022643,70744.0,70720.0,0.07093229]
[1773258733401,0.0022643,70742.0,70720.0,0.07093229]
[1773258733582,0.0022643,70739.0,70720.0,0.07093306]
[1773258734110,0.0022643,70739.0,70722.0,0.00464162]
[1773258734506,0.0012643,70739.0,70722.0,0.00464162]
[1773258734710,0.0012643,70737.0,70720.0,0.0002318]
[1773258734914,0.0012643,70734.0,70720.0,0.0002318]
[1773258735487,0.00144,70738.0,70720.0,0.0002318]
[1773258735488,0.00144,70738.0,70724.0,0.00464162]
[1773258735891,0.07212361,70738.0,70724.0,0.00464162]
[1773258736444,0.001,70737.0,70724.0,0.00464162]
[1773258737540,0.001,70737.0,70724.0,0.00484162]
[1773258737541,0.07168523,70737.0,70724.0,0.00484162]
[1773258737743,0.07068523,70737.0,70724.0,0.00484162]
[1773258738480,0.06968523,70737.0,70724.0,0.00484162]
[1773258740055,0.04199899,70734.0,70717.0,0.0002]
[1773258740258,0.0012643,70733.0,70717.0,0.0002]
[1773258740983,0.0012643,70731.0,70717.0,0.0002]
[1773258741697,0.0012643,70729.0,70717.0,0.0002]
[1773258742609,0.21161192,70731.0,70718.0,0.0046646]
[1773258742815,0.07069136,70731.0,70718.0,0.0046646]
[1773258743108,0.07169136,70731.0,70718.0,0.0046646]
[1773258743291,0.07069136,70731.0,70718.0,0.0046646]
[1773258743975,0.07169136,70731.0,70718.0,0.0046646]
[1773258744387,0.07269136,70731.0,70718.0,0.0046646]
[1773258744595,0.07069136,70731.0,70718.0,0.0046646]
[1773258746561,0.07069136,70731.0,70718.0,0.0048646]
[1773258746853,0.07169136,70731.0,70718.0,0.0048646]
[1773258747422,0.001,70731.0,70719.0,0.0046646]
[1773258748074,0.0012643,70729.0,70718.0,0.0002]
[1773258748449,0.07069336,70728.0,70718.0,0.0002]
[1773258749420,0.07069227,70731.0,70718.0,0.0002]